fUST/lending_fUST_20240626
["ID","MTS","AMOUNT","RATE_DAILY","PERIOD"]
[330393652,1719345041340,-500.0,0.00016438,2]
[330393653,1719345041350,-1176.93,0.00016438,2]
[330393654,1719345041361,-680.2,0.00016438,2]
[330393655,1719345041370,-640.53,0.00016438,2]
[330393656,1719345041379,-156.33392778,0.00016438,2]
[330393657,1719345041389,-500.0,0.00016438,2]
[330393658,1719345041398,-1400.02,0.00016438,2]
[330393659,1719345041408,-500.0,0.00016438,2]
[330393660,1719345041418,-500.0,0.00016438,2]
[330393661,1719345041427,-820.65,0.00016438,2]
[330393662,1719345041436,-500.0,0.00016438,2]
[330393663,1719345041445,-500.0,0.00016438,2]
[330393664,1719345041454,-500.0,0.00016438,2]
[330393665,1719345041464,-500.0,0.00016438,2]
[330393666,1719345041473,-500.0,0.00016438,2]
[330393667,1719345041483,-500.0,0.00016438,2]
[330393668,1719345041492,-8137.59,0.00016438,2]
[330393669,1719345041502,-2247.08,0.00016438,2]
[330393670,1719345041511,-1078.67,0.00016438,2]
[330393671,1719345041520,-500.0,0.00016438,2]
[330393672,1719345041529,-500.0,0.00016438,2]
[330393673,1719345041539,-500.0,0.00016438,2]
[330393674,1719345041552,-500.0,0.00016438,2]
[330393675,1719345041561,-500.0,0.00016438,2]
[330393676,1719345041571,-585.15,0.00016438,2]
[330393677,1719345041582,-3225.41,0.00016438,2]
[330393678,1719345041591,-500.0,0.00016438,2]
[330393679,1719345041600,-500.0,0.00016438,2]
[330393680,1719345041610,-500.0,0.00016438,2]
[330393681,1719345041619,-500.0,0.00016438,2]
[330393682,1719345041630,-500.0,0.00016438,2]
[330393683,1719345041641,-500.0,0.00016438,2]
[330393684,1719345041650,-500.0,0.00016438,2]
[330393685,1719345041660,-500.0,0.00016438,2]
[330393686,1719345041670,-500.0,0.00016438,2]
[330393687,1719345041679,-3062.22,0.00016438,2]
[330393688,1719345041688,-9539.97,0.00016438,2]
[330393689,1719345041697,-500.0,0.00016438,2]
[330393690,1719345041707,-500.0,0.00016438,2]
[330393691,1719345041716,-500.0,0.00016438,2]
[330393692,1719345041725,-500.0,0.00016438,2]
[330393693,1719345041735,-500.0,0.00016438,2]
[330393694,1719345041744,-24776.61,0.00016438,2]
[330393695,1719345041753,-500.0,0.00016438,2]
[330393696,1719345041762,-888.94,0.00016438,2]
[330393697,1719345041772,-500.0,0.00016438,2]
[330393698,1719345041782,-500.0,0.00016438,2]
[330393699,1719345041792,-7909.79,0.00016438,2]
[330393700,1719345041802,-4770.79,0.00016438,2]
[330393701,1719345041811,-898.59,0.00016438,2]
[330393702,1719345041821,-500.0,0.00016438,2]
[330393703,1719345041830,-1226.55,0.00016438,2]
[330393704,1719345041839,-546.97351837,0.00016438,2]
[330393705,1719345041848,-2899.09,0.00016438,2]
[330393706,1719345041858,-661.14,0.00016438,2]
[330393707,1719345041867,-500.0,0.00016438,2]
[330393708,1719345041876,-500.0,0.00016438,2]
[330393709,1719345041886,-276.11669524,0.00016598,2]
[330393710,1719345041895,-1207.59,0.00016711,2]
[330393711,1719345041906,-1207.59,0.00016711,2]
[330393712,1719345041915,-1207.59,0.00016711,2]
[330393713,1719345041925,-1207.59,0.00016711,2]
[330393714,1719345041935,-1207.59,0.00016711,2]
[330393715,1719345041944,-1207.59,0.00016711,2]
[330393716,1719345041954,-1207.59,0.00016711,2]
[330393717,1719345041963,-500.0,0.00016712,2]
[330393718,1719345041972,-528.73676303,0.00016712,2]
[330393719,1719345041982,-500.0,0.00016712,2]
[330393720,1719345041991,-500.0,0.00016712,2]
[330393721,1719345042001,-500.0,0.00016712,2]
[330393722,1719345042011,-602.85521189,0.00016712,2]
[330393723,1719345042024,-1568.4,0.00016712,2]
[330393724,1719345042033,-500.0,0.00016712,2]
[330393725,1719345042044,-500.0,0.00016712,2]
[330393726,1719345042055,-444.59224402,0.00016712,2]
[330393727,1719345042064,-500.0,0.00016712,2]
[330393728,1719345042074,-500.0,0.00016712,2]
[330393729,1719345042083,-151.0,0.00016712,2]
[330393730,1719345042092,-151.0,0.00016712,2]
[330393731,1719345042102,-250.0,0.00016712,2]
[330393732,1719345042111,-500.0,0.00016712,2]
[330393733,1719345042120,-151.0,0.00016712,2]
[330393734,1719345042129,-772.4,0.00016712,2]
[330393735,1719345042138,-500.0,0.00016712,2]
[330393736,1719345042147,-500.0,0.00016712,2]
[330393737,1719345042158,-500.0,0.00016712,2]
[330393738,1719345042167,-500.0,0.00016712,2]
[330393739,1719345042175,-500.0,0.00016712,2]
[330393740,1719345042185,-205.69006155,0.00016712,2]
[330393741,1719345042194,-500.0,0.00016712,2]
[330393742,1719345042204,-500.0,0.00016712,2]
[330393743,1719345042213,-306.39074947,0.00016712,2]
[330393744,1719345042222,-816.88,0.00016712,2]
[330393745,1719345042231,-500.0,0.00016712,2]
[330393746,1719345042241,-500.0,0.00016712,2]
[330393747,1719345042249,-500.0,0.00016712,2]
[330393748,1719345042374,-500.0,0.00016712,2]
[330393749,1719345042383,-500.0,0.00016712,2]
[330393750,1719345042392,-500.0,0.00016712,2]
[330393751,1719345042403,-500.0,0.00016712,2]
[330393752,1719345042412,-2093.88,0.00016712,2]
[330393753,1719345042422,-500.0,0.00016712,2]
[330393754,1719345042431,-500.0,0.00016712,2]
[330393755,1719345042441,-500.0,0.00016712,2]
[330393756,1719345042450,-500.0,0.00016712,2]
[330393757,1719345042459,-500.0,0.00016712,2]
[330393758,1719345042468,-500.0,0.00016712,2]
[330393759,1719345042478,-500.0,0.00016712,2]
[330393760,1719345042487,-500.0,0.00016712,2]
[330393761,1719345042496,-500.0,0.00016712,2]
[330393762,1719345042506,-500.0,0.00016712,2]
[330393763,1719345042515,-504.09378022,0.00016712,2]
[330393764,1719345042524,-500.0,0.00016712,2]
[330393765,1719345042534,-500.0,0.00016712,2]
[330393766,1719345042546,-500.0,0.00016712,2]
[330393767,1719345042556,-500.0,0.00016712,2]
[330393768,1719345042567,-1065.56,0.00016712,2]
[330393769,1719345042575,-500.0,0.00016712,2]
[330393770,1719345042586,-500.0,0.00016712,2]
[330393771,1719345042596,-500.0,0.00016712,2]
[330393772,1719345042605,-500.0,0.00016712,2]
[330393773,1719345042614,-500.0,0.00016712,2]
[330393774,1719345042627,-500.0,0.00016712,2]
[330393775,1719345042636,-500.0,0.00016712,2]
[330393776,1719345042645,-500.0,0.00016712,2]
[330393777,1719345042655,-495.71456584,0.00016712,2]
[330393778,1719345042665,-500.0,0.00016712,2]
[330393779,1719345042674,-504.51346287,0.00016712,2]
[330393780,1719345042683,-684.71,0.00016712,2]
[330393781,1719345042692,-514.25298232,0.00016712,2]
[330393782,1719345042702,-500.0,0.00016712,2]
[330393783,1719345042712,-500.0,0.00016712,2]
[330393784,1719345042721,-500.0,0.00016712,2]
[330393785,1719345042730,-500.0,0.00016712,2]
[330393786,1719345042740,-500.0,0.00016712,2]
[330393787,1719345042749,-500.0,0.00016712,2]
[330393788,1719345042758,-500.0,0.00016712,2]
[330393789,1719345042768,-1182.82,0.00016712,2]
[330393790,1719345042778,-500.0,0.00016712,2]
[330393791,1719345042787,-500.0,0.00016712,2]
[330393792,1719345042796,-507.31006786,0.00016712,2]
[330393793,1719345042806,-500.0,0.00016712,2]
[330393795,1719345042815,-500.0,0.00016712,2]
[330393796,1719345042824,-500.0,0.00016712,2]
[330393797,1719345042833,-500.0,0.00016712,2]
[330393798,1719345042842,-500.0,0.00016712,2]
[330393800,1719345042851,-500.0,0.00016712,2]
[330393802,1719345042860,-500.0,0.00016712,2]
[330393804,1719345042870,-500.0,0.00016712,2]
[330393805,1719345042879,-1487.04,0.00016712,2]
[330393807,1719345042888,-500.0,0.00016712,2]
[330393809,1719345042897,-1264.75,0.00016712,2]
[330393811,1719345042908,-500.0,0.00016712,2]
[330393813,1719345042917,-509.6179334,0.00016712,2]
[330393815,1719345042927,-500.0,0.00016712,2]
[330393817,1719345042936,-779.44,0.00016712,2]
[330393818,1719345042945,-500.0,0.00016712,2]
[330393819,1719345042955,-1044.1,0.00016712,2]
[330393820,1719345042964,-500.0,0.00016712,2]
[330393821,1719345042974,-505.70805807,0.00016712,2]
[330393822,1719345042982,-500.0,0.00016712,2]
[330393823,1719345042992,-566.61,0.00016712,2]
[330393824,1719345043001,-705.31,0.00016712,2]
[330393825,1719345043010,-186.49137259,0.00016712,2]
[330393827,1719345043022,-500.0,0.00016712,2]
[330393829,1719345043031,-561.84,0.00016712,2]
[330393831,1719345043041,-500.0,0.00016712,2]
[330393832,1719345043050,-500.0,0.00016712,2]
[330393833,1719345043059,-500.0,0.00016712,2]
[330393834,1719345043068,-500.0,0.00016712,2]
[330393835,1719345043077,-151.0,0.00016712,2]
[330393836,1719345043086,-500.0,0.00016712,2]
[330393837,1719345043099,-609.77,0.00016712,2]
[330393838,1719345043108,-859.66,0.00016712,2]
[330393840,1719345043117,-500.0,0.00016712,2]
[330393843,1719345043127,-500.0,0.00016712,2]
[330393845,1719345043138,-500.0,0.00016712,2]
[330393848,1719345043147,-1278.38,0.00016712,2]
[330393850,1719345043157,-500.0,0.00016712,2]
[330393852,1719345043167,-951.45,0.00016712,2]
[330393853,1719345043177,-2320.93,0.00016712,2]
[330393854,1719345043187,-500.0,0.00016712,2]
[330393855,1719345043197,-1663.73,0.00016712,2]
[330393856,1719345043207,-500.0,0.00016712,2]
[330393857,1719345043216,-429.80330025,0.00016712,2]
[330393858,1719345043227,-500.0,0.00016712,2]
[330393859,1719345043236,-500.0,0.00016712,2]
[330393860,1719345043245,-1260.31,0.00016712,2]
[330393862,1719345043254,-632.83,0.00016712,2]
[330393863,1719345043263,-358.86261391,0.00016712,2]
[330393865,1719345043273,-500.0,0.00016712,2]
[330393867,1719345043283,-500.0,0.00016712,2]
[330393869,1719345043293,-500.0,0.00016712,2]
[330393871,1719345043302,-500.0,0.00016712,2]
[330393872,1719345043312,-465.22334711,0.00016712,2]
[330393874,1719345043322,-500.0,0.00016712,2]
[330393876,1719345043331,-500.0,0.00016712,2]
[330393877,1719345043340,-500.0,0.00016712,2]
[330393879,1719345043350,-500.0,0.00016712,2]
[330393881,1719345043359,-500.0,0.00016712,2]
[330393883,1719345043368,-734.37,0.00016712,2]
[330393884,1719345043378,-500.0,0.00016712,2]
[330393885,1719345043387,-159.85248772,0.00016712,2]
[330393887,1719345043396,-500.0,0.00016712,2]
[330393889,1719345043406,-151.0,0.00016712,2]
[330393890,1719345043415,-151.0,0.00016712,2]
[330393892,1719345043424,-500.0,0.00016712,2]
[330393894,1719345043437,-500.0,0.00016712,2]
[330393895,1719345043446,-508.40846593,0.00016712,2]
[330393896,1719345043455,-500.0,0.00016712,2]
[330393898,1719345043465,-500.0,0.00016712,2]
[330393900,1719345043474,-500.0,0.00016712,2]
[330393901,1719345043483,-500.0,0.00016712,2]
[330393902,1719345043493,-500.0,0.00016712,2]
[330393903,1719345043502,-500.0,0.00016712,2]
[330393904,1719345043512,-500.0,0.00016712,2]
[330393905,1719345043522,-1558.06,0.00016712,2]
[330393906,1719345043533,-18140.53,0.00016712,2]
[330393908,1719345043546,-500.0,0.00016712,2]
[330393909,1719345043556,-500.0,0.00016712,2]
[330393910,1719345043565,-151.0,0.00016712,2]
[330393911,1719345043574,-1623.99,0.00016712,2]
[330393912,1719345043585,-740.36,0.00016712,2]
[330393913,1719345043594,-547.7,0.00016712,2]
[330393914,1719345043603,-500.0,0.00016712,2]
[330393915,1719345043613,-565.27,0.00016712,2]
[330393916,1719345043624,-500.0,0.00016712,2]
[330393917,1719345043634,-3081.43,0.00016712,2]
[330393918,1719345043644,-3293.45280676,0.00016712,2]
[330393919,1719345043836,-1078.23671621,0.00016712,2]
[330393920,1719345043848,-627.90047703,0.00016712,2]
[330393921,1719345043858,-259.50664856,0.00016712,2]
[330393922,1719345043867,-993.18,0.00016712,2]
[330393923,1719345043876,-500.0,0.00016712,2]
[330393924,1719345043886,-816.95,0.00016712,2]
[330393925,1719345043895,-5042.92,0.00016712,2]
[330393926,1719345043905,-5019.01,0.00016712,2]
[330393927,1719345043916,-500.0,0.00016712,2]
[330393928,1719345043929,-378.23887944,0.00016712,2]
[330393929,1719345043938,-500.0,0.00016712,2]
[330393930,1719345043946,-500.0,0.00016712,2]
[330393931,1719345043955,-500.0,0.00016712,2]
[330393932,1719345043964,-702.05,0.00016712,2]
[330393933,1719345043972,-500.0,0.00016712,2]
[330393934,1719345043981,-2916.18,0.00016712,2]
[330393935,1719345043990,-500.0,0.00016712,2]
[330393936,1719345043999,-502.50491053,0.00016712,2]
[330393937,1719345044008,-500.0,0.00016712,2]
[330393938,1719345044017,-500.0,0.00016712,2]
[330393939,1719345044027,-500.0,0.00016712,2]
[330393940,1719345044037,-500.0,0.00016712,2]
[330393941,1719345044047,-551.45,0.00016712,2]
[330393942,1719345044056,-500.0,0.00016712,2]
[330393943,1719345044065,-1261.46,0.00016712,2]
[330393944,1719345044074,-500.0,0.00016712,2]
[330393945,1719345044084,-500.0,0.00016712,2]
[330393946,1719345044093,-56.56908444,0.00016712,2]
[330393947,1719345044272,-443.43091556,0.00016712,2]
[330393948,1719345044282,-1244.45,0.00016712,2]
[330393949,1719345044291,-500.0,0.00016712,2]
[330393950,1719345044301,-500.0,0.00016712,2]
[330393951,1719345044311,-10036.02,0.00016712,2]
[330393952,1719345044320,-151.0,0.00016712,2]
[330393953,1719345044330,-151.0,0.00016712,2]
[330393954,1719345044339,-500.0,0.00016712,2]
[330393955,1719345044349,-500.0,0.00016712,2]
[330393956,1719345044358,-151.0,0.00016712,2]
[330393957,1719345044368,-586.19,0.00016712,2]
[330393958,1719345044377,-1288.35,0.00016712,2]
[330393959,1719345044386,-500.0,0.00016712,2]
[330393960,1719345044395,-978.43,0.00016712,2]
[330393961,1719345044405,-507.81902466,0.00016712,2]
[330393962,1719345044414,-151.0,0.00016712,2]
[330393963,1719345044423,-500.0,0.00016712,2]
[330393964,1719345044433,-500.0,0.00016712,2]
[330393965,1719345044442,-538.72,0.00016712,2]
[330393966,1719345044451,-151.0,0.00016712,2]
[330393967,1719345044461,-151.0,0.00016712,2]
[330393968,1719345044470,-151.0,0.00016712,2]
[330393969,1719345044479,-500.0,0.00016712,2]
[330393970,1719345044488,-215.606084,0.00016712,2]
[330393971,1719345044498,-680.2,0.00016712,2]
[330393972,1719345044509,-640.53,0.00016712,2]
[330393973,1719345044519,-500.0,0.00016712,2]
[330393974,1719345044530,-1176.93,0.00016712,2]
[330393975,1719345044544,-1400.02,0.00016712,2]
[330393976,1719345044555,-189.8069188,0.00016712,2]
[330393977,1719345044565,-500.0,0.00016712,2]
[330393978,1719345044574,-282.86779106,0.00016712,2]
[330393979,1719345045133,-0.00150994,0.00016712,2]
[330393980,1719345045144,-537.780699,0.00016712,2]
[330393981,1719345045155,-500.0,0.00016712,2]
[330393982,1719345045164,-500.0,0.00016712,2]
[330393983,1719345045172,-500.0,0.00016712,2]
[330393984,1719345045181,-500.0,0.00016712,2]
[330393985,1719345045191,-500.0,0.00016712,2]
[330393986,1719345045200,-151.0,0.00016712,2]
[330393987,1719345045209,-8137.59,0.00016712,2]
[330393988,1719345045218,-2247.08,0.00016712,2]
[330393989,1719345045227,-151.0,0.00016712,2]
[330393990,1719345045235,-1078.67,0.00016712,2]
[330393991,1719345045244,-500.0,0.00016712,2]
[330393992,1719345045253,-500.0,0.00016712,2]
[330393993,1719345045262,-500.0,0.00016712,2]
[330393994,1719345045271,-500.0,0.00016712,2]
[330393995,1719345045280,-3225.41,0.00016712,2]
[330393996,1719345045289,-585.15,0.00016712,2]
[330393997,1719345045298,-500.0,0.00016712,2]
[330393998,1719345045308,-500.0,0.00016712,2]
[330393999,1719345045317,-426.69059233,0.00016712,2]
[330394000,1719345045327,-509.9641905,0.00016712,2]
[330394001,1719345045336,-500.0,0.00016712,2]
[330394002,1719345045345,-500.0,0.00016712,2]
[330394003,1719345045355,-3062.22,0.00016712,2]
[330394004,1719345045364,-9539.97,0.00016712,2]
[330394005,1719345045373,-614.17407764,0.00016712,2]
[330394006,1719345045383,-626.530452,0.00016712,2]
[330394007,1719345045393,-626.530452,0.00016712,2]
[330394008,1719345045402,-626.530452,0.00016712,2]
[330394009,1719345045412,-500.0,0.00016712,2]
[330394010,1719345045421,-500.0,0.00016712,2]
[330394011,1719345045430,-626.530452,0.00016712,2]
[330394012,1719345045440,-626.530452,0.00016712,2]
[330394013,1719345045450,-24776.61,0.00016712,2]
[330394014,1719345045459,-626.530452,0.00016712,2]
[330394015,1719345045468,-500.0,0.00016712,2]
[330394016,1719345045478,-888.94,0.00016712,2]
[330394017,1719345045487,-151.0,0.00016712,2]
[330394018,1719345045496,-500.0,0.00016712,2]
[330394019,1719345045506,-151.0,0.00016712,2]
[330394020,1719345045516,-276.334264,0.00016712,2]
[330394021,1719345045526,-7909.79,0.00016712,2]
[330394022,1719345045536,-4770.79,0.00016712,2]
[330394023,1719345045551,-151.0,0.00016712,2]
[330394024,1719345045560,-151.0,0.00016712,2]
[330394025,1719345045570,-155.311989,0.00016712,2]
[330394026,1719345045579,-898.59,0.00016712,2]
[330394027,1719345045588,-500.0,0.00016712,2]
[330394028,1719345045599,-1226.55,0.00016712,2]
[330394029,1719345045608,-2899.09,0.00016712,2]
[330394030,1719345045618,-661.14,0.00016712,2]
[330394031,1719345045630,-500.0,0.00016712,2]
[330394032,1719345045639,-500.0,0.00016712,2]
[330394033,1719345045649,-919.45361915,0.00016733,2]
[330394034,1719345045660,-810.01188561,0.0001688,2]
[330394035,1719345045669,-335.18517878,0.00016969,2]
[330394036,1719345045679,-11118.98907716,0.00016969,2]
[330394037,1719345045688,-661.02191693,0.00016969,2]
[330394038,1719345045698,-7036.48879505,0.00016969,2]
[330394039,1719345045707,-250.89307863,0.00016969,2]
[330394040,1719345045717,-1313.011853,0.00016969,2]
[330394041,1719345045726,-1568.46393602,0.00016969,2]
[330394042,1719345045736,-1207.59,0.00016985,2]
[330394043,1719345045746,-1207.59,0.00016985,2]
[330394044,1719345045755,-1207.59,0.00016985,2]
[330394045,1719345045764,-1207.59,0.00016985,2]
[330394046,1719345045774,-1207.59,0.00016985,2]
[330394047,1719345045783,-1207.59,0.00016985,2]
[330394048,1719345045792,-1207.59,0.00016985,2]
[330394049,1719345045801,-1207.59,0.00016985,2]
[330394050,1719345045811,-1207.59,0.00016985,2]
[330394051,1719345045821,-1207.82227242,0.00016985,2]
[330394052,1719345045830,-520.69102133,0.00016986,2]
[330394053,1719345045840,-500.0,0.00016986,2]
[330394054,1719345045849,-508.92184921,0.00016986,2]
[330394055,1719345045859,-1568.4,0.00016986,2]
[330394057,1719345045868,-500.0,0.00016986,2]
[330394059,1719345045877,-500.0,0.00016986,2]
[330394061,1719345045886,-434.35381945,0.00016986,2]
[330394063,1719345045895,-500.0,0.00016986,2]
[330394064,1719345045904,-250.0,0.00016986,2]
[330394065,1719345045914,-500.0,0.00016986,2]
[330394067,1719345045923,-772.4,0.00016986,2]
[330394068,1719345045932,-507.64112079,0.00016986,2]
[330394069,1719345045942,-500.0,0.00016986,2]
[330394071,1719345045951,-526.70348576,0.00016986,2]
[330394073,1719345045960,-292.28763677,0.00016986,2]
[330394075,1719345045970,-500.0,0.00016986,2]
[330394076,1719345045980,-500.0,0.00016986,2]
[330394079,1719345045989,-500.0,0.00016986,2]
[330394081,1719345045999,-816.88,0.00016986,2]
[330394082,1719345046008,-500.0,0.00016986,2]
[330394084,1719345046018,-500.0,0.00016986,2]
[330394086,1719345046029,-500.0,0.00016986,2]
[330394087,1719345046038,-500.0,0.00016986,2]
[330394089,1719345046048,-500.0,0.00016986,2]
[330394091,1719345046058,-500.0,0.00016986,2]
[330394092,1719345046067,-500.0,0.00016986,2]
[330394093,1719345046076,-2093.88,0.00016986,2]
[330394096,1719345046086,-500.0,0.00016986,2]
[330394098,1719345046094,-500.0,0.00016986,2]
[330394101,1719345046104,-500.0,0.00016986,2]
[330394104,1719345046113,-500.0,0.00016986,2]
[330394107,1719345046123,-500.0,0.00016986,2]
[330394110,1719345046132,-500.0,0.00016986,2]
[330394113,1719345046140,-500.0,0.00016986,2]
[330394115,1719345046149,-500.0,0.00016986,2]
[330394117,1719345046159,-500.0,0.00016986,2]
[330394118,1719345046170,-500.0,0.00016986,2]
[330394119,1719345046178,-1065.56,0.00016986,2]
[330394120,1719345046188,-500.0,0.00016986,2]
[330394121,1719345046198,-500.0,0.00016986,2]
[330394122,1719345046208,-507.92741201,0.00016986,2]
[330394123,1719345046217,-500.0,0.00016986,2]
[330394124,1719345046227,-500.0,0.00016986,2]
[330394125,1719345046236,-500.0,0.00016986,2]
[330394126,1719345046246,-500.0,0.00016986,2]
[330394127,1719345046255,-500.0,0.00016986,2]
[330394128,1719345046264,-500.0,0.00016986,2]
[330394129,1719345046274,-500.0,0.00016986,2]
[330394130,1719345046283,-684.71,0.00016986,2]
[330394131,1719345046293,-500.0,0.00016986,2]
[330394132,1719345046303,-500.0,0.00016986,2]
[330394133,1719345046312,-500.0,0.00016986,2]
[330394134,1719345046322,-500.0,0.00016986,2]
[330394135,1719345046331,-500.0,0.00016986,2]
[330394136,1719345046340,-500.0,0.00016986,2]
[330394137,1719345046349,-485.98891588,0.00016986,2]
[330394138,1719345046358,-1182.82,0.00016986,2]
[330394139,1719345046368,-500.0,0.00016986,2]
[330394140,1719345046377,-500.0,0.00016986,2]
[330394141,1719345046386,-500.0,0.00016986,2]
[330394142,1719345046396,-500.0,0.00016986,2]
[330394143,1719345046405,-500.0,0.00016986,2]
[330394144,1719345046418,-363.65306744,0.00016986,2]
[330394145,1719345046431,-500.0,0.00016986,2]
[330394146,1719345046440,-500.0,0.00016986,2]
[330394148,1719345046450,-500.0,0.00016986,2]
[330394150,1719345046460,-500.0,0.00016986,2]
[330394151,1719345046469,-1487.04,0.00016986,2]
[330394153,1719345046479,-316.42763136,0.00016986,2]
[330394155,1719345046489,-1264.75,0.00016986,2]
[330394157,1719345046499,-505.34766586,0.00016986,2]
[330394158,1719345046510,-500.0,0.00016986,2]
[330394159,1719345046520,-779.44,0.00016986,2]
[330394160,1719345046530,-500.0,0.00016986,2]
[330394161,1719345046543,-1044.1,0.00016986,2]
[330394162,1719345046553,-500.0,0.00016986,2]
[330394163,1719345046564,-500.0,0.00016986,2]
[330394164,1719345046574,-566.61,0.00016986,2]
[330394165,1719345046584,-705.31,0.00016986,2]
[330394166,1719345046595,-500.0,0.00016986,2]
[330394167,1719345046605,-561.84,0.00016986,2]
[330394168,1719345046615,-500.0,0.00016986,2]
[330394169,1719345046625,-500.0,0.00016986,2]
[330394170,1719345046634,-500.0,0.00016986,2]
[330394172,1719345046644,-500.0,0.00016986,2]
[330394174,1719345046654,-500.0,0.00016986,2]
[330394176,1719345046667,-609.77,0.00016986,2]
[330394177,1719345046677,-859.66,0.00016986,2]
[330394178,1719345046687,-500.0,0.00016986,2]
[330394179,1719345046696,-500.0,0.00016986,2]
[330394180,1719345046705,-354.73160894,0.00016986,2]
[330394181,1719345046714,-1278.38,0.00016986,2]
[330394182,1719345046724,-508.35309095,0.00016986,2]
[330394183,1719345046734,-2320.93,0.00016986,2]
[330394184,1719345046743,-509.41012546,0.00016986,2]
[330394185,1719345046752,-951.45,0.00016986,2]
[330394186,1719345046762,-1663.73,0.00016986,2]
[330394187,1719345046772,-500.0,0.00016986,2]
[330394188,1719345046781,-500.0,0.00016986,2]
[330394189,1719345046791,-1260.31,0.00016986,2]
[330394190,1719345046800,-632.83,0.00016986,2]
[330394191,1719345046810,-500.0,0.00016986,2]
[330394192,1719345046819,-500.0,0.00016986,2]
[330394193,1719345046829,-500.0,0.00016986,2]
[330394194,1719345046838,-500.0,0.00016986,2]
[330394195,1719345046847,-500.0,0.00016986,2]
[330394196,1719345046856,-500.0,0.00016986,2]
[330394197,1719345046866,-500.0,0.00016986,2]
[330394198,1719345046875,-500.0,0.00016986,2]
[330394199,1719345046884,-500.0,0.00016986,2]
[330394200,1719345046894,-734.37,0.00016986,2]
[330394201,1719345046903,-500.0,0.00016986,2]
[330394202,1719345046914,-500.0,0.00016986,2]
[330394203,1719345046922,-507.4136134,0.00016986,2]
[330394204,1719345046932,-500.0,0.00016986,2]
[330394205,1719345046942,-500.0,0.00016986,2]
[330394206,1719345046952,-506.61803715,0.00016986,2]
[330394207,1719345046961,-500.0,0.00016986,2]
[330394208,1719345046970,-500.0,0.00016986,2]
[330394209,1719345046979,-508.34201899,0.00016986,2]
[330394210,1719345046989,-500.0,0.00016986,2]
[330394211,1719345046998,-500.0,0.00016986,2]
[330394212,1719345047007,-1558.06,0.00016986,2]
[330394213,1719345047016,-18140.53,0.00016986,2]
[330394214,1719345047027,-500.0,0.00016986,2]
[330394215,1719345047036,-500.0,0.00016986,2]
[330394216,1719345047046,-1623.99,0.00016986,2]
[330394217,1719345047056,-740.36,0.00016986,2]
[330394218,1719345047066,-547.7,0.00016986,2]
[330394219,1719345047075,-500.0,0.00016986,2]
[330394220,1719345047086,-565.27,0.00016986,2]
[330394221,1719345047095,-500.0,0.00016986,2]
[330394222,1719345047104,-3081.43,0.00016986,2]
[330394223,1719345047114,-4999.59,0.00016986,2]
[330394224,1719345047126,-993.18,0.00016986,2]
[330394225,1719345047135,-500.0,0.00016986,2]
[330394226,1719345047145,-816.95,0.00016986,2]
[330394227,1719345047154,-5042.92,0.00016986,2]